[Event "Czech Extraliga 2024-25"]
[Site "Czechia"]
[Date "2024.11.03"]
[Round "2.7"]
[White "Pulpan, Jakub"]
[Black "Jirousek, Jan"]
[Result "1-0"]
[ECO "B11"]
[WhiteElo "2398"]
[BlackElo "2035"]
[Annotator "RC"]
[PlyCount "89"]
[EventDate "2024.09.12"]
[EventType "team-tourn"]
[EventCountry "CZE"]
[SourceTitle "playchess.com"]
[Source "ChessBase"]
[SourceQuality "1"]
[TimeControl "40/5400+30:1800+30"]

1. e4 {[%emt 0:00:42]} c6 {[%emt 0:00:10]} 2. Nf3 {[%emt 0:05:57]} d5 {[%emt 0:00:10]} 3. Nc3 {[%emt 0:00:06]} Bg4 {[%emt 0:00:17]} 4. h3 {[%emt 0:00:04]} Bxf3 {[%emt 0:00:07]} 5. Qxf3 {[%emt 0:00:06]} e6 {[%emt 0:00:21]} 6. a3 {[%emt 0:00:31]} Nf6 {[%emt 0:03:00]} 7. d3 {[%emt 0:02:48]} Be7 {[%emt 0:01:36]} 8. g3 {[%emt 0:00:32]} O-O {[%emt 0:09:10]} 9. Bg2 {[%emt 0:00:15]} dxe4 {[%emt 0:04:20]} 10. dxe4 {[%emt 0:03:20]} Nbd7 {[%emt 0:00:24]} 11. O-O {[%emt 0:00:22]} a5 {[%emt 0:00:31]} 12. Kh2 {[%emt 0:13:43]} b5 {[%emt 0:09:24]} 13. Qe2 {[%emt 0:10:30]} b4 {[%emt 0:04:44]} 14. Na4 {[%emt 0:02:51]} Nc5 {[%emt 0:05:15]} 15. Nxc5 {[%emt 0:02:35]} Bxc5 {[%emt 0:03:04]} 16. Bg5 {[%emt 0:00:17]} e5 {[%emt 0:21:49]} 17. axb4 {[%emt 0:12:06]} Bxb4 {[%emt 0:00:36]} 18. Be3 {[%emt 0:42:45]} Qb8 {[%emt 0:06:10]} 19. Qf3 {[%emt 0:00:00]} Qc8 {[%emt 0:03:42]} 20. Ra2 {[%emt 0:00:00]} Qe6 {[%emt 0:05:29]} 21. Rfa1 {[%emt 0:00:00]} Rab8 {[%emt 0:01:23]} 22. Bc1 {[%emt 0:00:00]} Nd7 {[%emt 0:06:05]} 23. h4 {[%emt 0:00:00]} Nc5 {[%emt 0:01:51]} 24. Be3 {[%emt 0:00:00]} Nb7 {[%emt 0:01:17]} 25. Bh3 {[%emt 0:00:00]} Qe7 {[%emt 0:02:20]} 26. Rd1 {[%emt 0:00:00]} Rfd8 {[%emt 0:02:05]} 27. Bg5 {[%emt 0:00:00]} f6 {[%emt 0:00:27]} 28. Qb3+ {[%emt 0:00:00]} Kh8 {[%emt 0:01:05]} 29. Rxd8+ {[%emt 0:00:00]} Rxd8 {[%emt 0:00:52]} 30. Be3 {[%emt 0:00:00]} Bc5 {[%emt 0:01:37]} 31. Bxc5 {[%emt 0:00:00]} Nxc5 {[%emt 0:00:02]} 32. Qc4 {[%emt 0:00:00]} a4 {[%emt 0:02:56]} 33. b4 {[%emt 0:00:00]} axb3 {[%emt 0:00:23]} 34. cxb3 {[%emt 0:00:00]} g6 {[%emt 0:01:17]} 35. b4 {[%emt 0:02:13]} Nd3 {[%emt 0:01:20]} 36. Rd2 {[%emt 0:01:10]} Rd4 {[%emt 0:01:03]} 37. Qxc6 {[%emt 0:00:58]} Nxb4 {[%emt 0:00:36]} 38. Qa8+ {[%emt 0:01:46]} Kg7 {[%emt 0:00:08]} 39. Rb2 {[%emt 0:00:08]} Kh6 {[%emt 0:01:14]} 40. Bg2 {[%emt 0:01:22]} Qc5 {[%emt 0:01:31]} 41. Qb7 {[%emt 0:09:02]} Nd3 {[%emt 0:08:29]} 42. Ra2 {[%emt 0:03:39]} Qf8 {[%emt 0:08:05]} 43. Bh3 {[%emt 0:13:25]} Nc5 {[%emt 0:04:36]} 44. Qc7 {[%emt 0:01:08]} Qg8 {[%emt 0:04:34]} 45. Qxc5 {[%emt 0:01:51]} 1-0

[Event "Czech Extraliga 2024-25"]
[Site "Czechia"]
[Date "2024.11.03"]
[Round "2.7"]
[White "Hollan, Petr"]
[Black "Roubalik, Jakub"]
[Result "1/2-1/2"]
[ECO "C84"]
[WhiteElo "2251"]
[BlackElo "2315"]
[Annotator "RC"]
[PlyCount "101"]
[EventDate "2024.09.12"]
[EventType "team-tourn"]
[EventCountry "CZE"]
[SourceTitle "playchess.com"]
[Source "ChessBase"]
[SourceQuality "1"]
[TimeControl "40/5400+30:1800+30"]

1. e4 {[%emt 0:00:06]} e5 {[%emt 0:00:10]} 2. Nf3 {[%emt 0:00:05]} Nc6 {[%emt 0:00:10]} 3. Bb5 {[%emt 0:01:02]} a6 {[%emt 0:00:09]} 4. Ba4 {[%emt 0:00:05]} Nf6 {[%emt 0:00:14]} 5. d3 {[%emt 0:00:07]} b5 {[%emt 0:01:09]} 6. Bb3 {[%emt 0:00:05]} Be7 {[%emt 0:03:00]} 7. Nc3 {[%emt 0:00:47]} d6 {[%emt 0:01:30]} 8. a4 {[%emt 0:00:12]} Rb8 {[%emt 0:09:51]} 9. axb5 {[%emt 0:05:43]} axb5 {[%emt 0:00:07]} 10. h3 {[%emt 0:00:44]} O-O {[%emt 0:02:30]} 11. O-O {[%emt 0:01:44]} Be6 {[%emt 0:09:42]} 12. Nd5 {[%emt 0:01:49]} Qd7 {[%emt 0:06:30]} 13. c3 {[%emt 0:02:20]} Nd8 {[%emt 0:06:28]} 14. Nxe7+ {[%emt 0:01:15]} Qxe7 {[%emt 0:00:08]} 15. Bc2 {[%emt 0:00:13]} c5 {[%emt 0:09:16]} 16. d4 {[%emt 0:00:49]} Bc8 {[%emt 0:09:18]} 17. Re1 {[%emt 0:07:08]} h6 {[%emt 0:03:00]} 18. b4 {[%emt 0:02:08]} cxb4 {[%emt 0:04:21]} 19. cxb4 {[%emt 0:01:44]} Nc6 {[%emt 0:00:25]} 20. Rb1 {[%emt 0:00:43]} exd4 {[%emt 0:04:46]} 21. Nxd4 {[%emt 0:00:09]} Nxd4 {[%emt 0:00:26]} 22. Qxd4 {[%emt 0:00:01]} Be6 {[%emt 0:00:24]} 23. Bf4 {[%emt 0:01:43]} Rfd8 {[%emt 0:01:04]} 24. Bd3 {[%emt 0:14:33]} Nh5 {[%emt 0:07:24]} 25. Bh2 {[%emt 0:00:22]} Qg5 {[%emt 0:04:50]} 26. Qe3 {[%emt 0:00:25]} Qxe3 {[%emt 0:03:14]} 27. Rxe3 {[%emt 0:00:09]} Rb7 {[%emt 0:00:16]} 28. Rc1 {[%emt 0:03:44]} Nf6 {[%emt 0:00:55]} 29. Re2 {[%emt 0:04:04]} Bc4 {[%emt 0:10:01]} 30. Bxc4 {[%emt 0:01:07]} bxc4 {[%emt 0:00:10]} 31. Rxc4 {[%emt 0:00:14]} d5 {[%emt 0:00:07]} 32. exd5 {[%emt 0:08:13]} Nxd5 {[%emt 0:00:16]} 33. Rd2 {[%emt 0:01:49]} Re8 {[%emt 0:01:16]} 34. Bd6 {[%emt 0:00:21]} Re1+ {[%emt 0:01:34]} 35. Kh2 {[%emt 0:00:07]} Nf6 {[%emt 0:01:04]} 36. Rc7 {[%emt 0:08:14]} Rxc7 {[%emt 0:01:09]} 37. Bxc7 {[%emt 0:00:04]} Rb1 {[%emt 0:00:14]} 38. Rd4 {[%emt 0:00:23]} Kf8 {[%emt 0:01:23]} 39. Bd8 {[%emt 0:01:13]} Nh7 {[%emt 0:00:48]} 40. f4 {[%emt 0:03:45]} g6 {[%emt 0:00:35]} 41. Re4 {[%emt 0:42:06]} h5 {[%emt 0:06:49]} 42. Be7+ {[%emt 0:00:00]} Kg8 {[%emt 0:01:18]} 43. Rc4 {[%emt 0:00:00]} Kg7 {[%emt 0:03:20]} 44. Rc7 {[%emt 0:00:00]} Nf6 {[%emt 0:02:54]} 45. Bd6 {[%emt 0:00:00]} Ne4 {[%emt 0:02:52]} 46. Be5+ {[%emt 0:00:00]} Kf8 {[%emt 0:00:10]} 47. f5 {[%emt 0:03:17]} gxf5 {[%emt 0:03:35]} 48. Rc8+ {[%emt 0:03:49]} Ke7 {[%emt 0:00:07]} 49. Rh8 {[%emt 0:00:24]} Rxb4 {[%emt 0:01:33]} 50. Rxh5 {[%emt 0:00:15]} Ke6 {[%emt 0:00:13]} 51. Bf4 {[%emt 0:06:58]} 1/2-1/2

[Event "Czech Extraliga 2024-25"]
[Site "Czechia"]
[Date "2024.11.03"]
[Round "2.7"]
[White "Flajsman, Pavel"]
[Black "Bures, Jaroslav"]
[Result "0-1"]
[ECO "D02"]
[WhiteElo "2179"]
[BlackElo "2405"]
[Annotator "RC"]
[PlyCount "88"]
[EventDate "2024.09.12"]
[EventType "team-tourn"]
[EventCountry "CZE"]
[SourceTitle "playchess.com"]
[Source "ChessBase"]
[SourceQuality "1"]
[TimeControl "40/5400+30:1800+30"]

1. Nf3 {[%emt 0:00:01]} g6 {[%emt 0:02:16]} 2. d4 {[%emt 0:03:16]} Nf6 {[%emt 0:00:37]} 3. Nbd2 {[%emt 0:00:17]} d5 {[%emt 0:00:22]} 4. e3 {[%emt 0:00:10]} Bg7 {[%emt 0:00:20]} 5. b4 {[%emt 0:00:56]} a5 {[%emt 0:00:01]} 6. b5 {[%emt 0:00:11]} c5 {[%emt 0:00:01]} 7. bxc6 {[%emt 0:01:35]} Nxc6 {[%emt 0:00:02]} 8. a4 {[%emt 0:00:23]} O-O {[%emt 0:00:43]} 9. c3 {[%emt 0:01:16]} e5 {[%emt 0:02:18]} 10. Ba3 {[%emt 0:13:44]} Re8 {[%emt 0:00:07]} 11. Bb5 {[%emt 0:00:31]} e4 {[%emt 0:00:02]} 12. Ng1 {[%emt 0:02:41]} Bd7 {[%emt 0:16:01]} 13. h3 {[%emt 0:03:46]} Na7 {[%emt 0:04:40]} 14. c4 {[%emt 0:11:12]} Nxb5 {[%emt 0:10:32]} 15. cxb5 {[%emt 0:00:51]} Nh5 {[%emt 0:00:07]} 16. Ne2 {[%emt 0:07:49]} Qg5 {[%emt 0:02:14]} 17. g4 {[%emt 0:00:09]} Nf6 {[%emt 0:00:08]} 18. Bd6 {[%emt 0:22:13]} Rac8 {[%emt 0:00:04]} 19. Qb3 {[%emt 0:08:06]} Qh4 {[%emt 0:06:29]} 20. Bg3 {[%emt 0:09:29]} Qh6 {[%emt 0:00:01]} 21. h4 {[%emt 0:02:40]} g5 {[%emt 0:01:48]} 22. Bf4 {[%emt 0:03:07]} Nxg4 {[%emt 0:10:21]} 23. Bxg5 {[%emt 0:00:06]} Qe6 {[%emt 0:00:00]} 24. h5 {[%emt 0:03:42]} Qf5 {[%emt 0:03:15]} 25. Bh4 {[%emt 0:00:30]} Bh6 {[%emt 0:04:31]} 26. Bg3 {[%emt 0:00:19]} Be6 {[%emt 0:01:18]} 27. Nf4 {[%emt 0:02:03]} Kh8 {[%emt 0:04:49]} 28. Rh4 {[%emt 0:01:47]} Rg8 {[%emt 0:02:21]} 29. Ke2 {[%emt 0:00:04]} b6 {[%emt 0:01:29]} 30. Qb2 {[%emt 0:00:04]} Nf6 {[%emt 0:04:01]} 31. Rc1 {[%emt 0:01:47]} Bxf4 {[%emt 0:04:57]} 32. Bxf4 {[%emt 0:00:02]} Nxh5 {[%emt 0:00:07]} 33. Rch1 {[%emt 0:01:09]} Nxf4+ {[%emt 0:00:40]} 34. Rxf4 {[%emt 0:00:01]} Qg6 {[%emt 0:02:36]} 35. Nxe4 {[%emt 0:01:31]} Bg4+ {[%emt 0:03:08]} 36. f3 {[%emt 0:00:05]} Bxf3+ {[%emt 0:00:01]} 37. Rxf3 {[%emt 0:00:23]} Qxe4 {[%emt 0:00:01]} 38. Rc1 {[%emt 0:00:57]} Rg2+ {[%emt 0:03:44]} 39. Rf2 {[%emt 0:00:01]} Qg4+ {[%emt 0:00:09]} 40. Ke1 {[%emt 0:01:04]} Rg1+ {[%emt 0:00:25]} 41. Rf1 {[%emt 0:01:29]} Rxf1+ {[%emt 0:02:05]} 42. Kxf1 {[%emt 0:00:03]} Qf3+ {[%emt 0:00:04]} 43. Ke1 {[%emt 0:00:49]} Qxe3+ {[%emt 0:00:07]} 44. Kd1 {[%emt 0:00:06]} Rxc1+ {[%emt 0:00:33]} 0-1

[Event "Czech Extraliga 2024-25"]
[Site "Czechia"]
[Date "2024.11.03"]
[Round "2.8"]
[White "Rydl, Jiri"]
[Black "Velicka, Petr"]
[Result "1/2-1/2"]
[ECO "A29"]
[WhiteElo "2404"]
[BlackElo "2334"]
[Annotator "TA"]
[PlyCount "97"]
[EventDate "2024.09.12"]
[EventType "team-tourn"]
[EventCountry "CZE"]
[SourceTitle "playchess.com"]
[Source "ChessBase"]
[SourceQuality "1"]
[TimeControl "40/5400+30:1800+30"]

{[%evp 17,97,21,39,34,39,28,27,5,27,20,29,17,23,21,73,79,74,0,0,0,0,0,0,0,0,0,36,28,77,95,94,0,4,6,4,-16,11,0,0,0,0,0,7,0,0,0,0,0,0,-31,-23,-113,0,-6,-5,-6,0,0,0,0,0,0,0,0,0,0,0,0,0,-11,-20,-26,-19,-20,0,0,0,0,0,0,0,0]} 1. c4 {[%emt 0:00:15]} e5 {[%emt 0:00:06]} 2. Nc3 {[%emt 0:00:28]} Nf6 {[%emt 0:00:06]} 3. Nf3 {[%emt 0:00:46]} Nc6 {[%emt 0:00:14]} 4. g3 {[%emt 0:00:25]} Bb4 {[%emt 0:00:46]} 5. Bg2 {[%emt 0:01:19]} Bxc3 {[%emt 0:00:59]} 6. bxc3 {[%emt 0:00:53]} O-O {[%emt 0:00:46]} 7. O-O {[%emt 0:00:13]} d6 {[%emt 0:01:17]} 8. d3 {[%emt 0:00:58]} e4 {[%emt 0:01:26]} 9. Nd4 {[%emt 0:08:09]} exd3 {[%emt 0:01:51]} 10. exd3 {[%emt 0:03:03]} Bd7 {[%emt 0:03:28]} 11. Rb1 {[%emt 0:08:29]} Rb8 {[%emt 0:01:56]} 12. Nc2 {[%emt 0:14:39] White has an edge.} Bg4 {[%emt 0:08:33]} 13. f3 {[%emt 0:03:59]} Be6 {[%emt 0:00:35]} 14. f4 {[%emt 0:00:36] Black should prevent f5.} Qd7 {[%emt 0:01:15]} 15. Ne3 {[%emt 0:00:18] Threatens to win with f5.} Bh3 {[%emt 0:10:14]} (15... Ne7 $11 {remains equal.}) 16. Bxh3 $16 {[%emt 0:00:32]} Qxh3 {[%emt 0:00:07] [#]} 17. f5 {[%emt 0:09:28]} (17. g4 $1 $16) 17... Ne5 $11 {[%emt 0:07:48] Inhibits Rf3.} 18. Rf4 {[%emt 0:02:02] Against Neg4} g5 {[%emt 0:00:11] Dodges Rh4} 19. fxg6 {[%emt 0:05:48]} fxg6 {[%emt 0:00:17]} 20. d4 {[%emt 0:06:52]} Ned7 {[%emt 0:10:24]} 21. Qf3 {[%emt 0:06:42]} c6 {[%emt 0:03:12]} 22. Bd2 {[%emt 0:02:22]} Nh5 {[%emt 0:01:08]} (22... Kh8 $11) 23. Rxf8+ $16 {[%emt 0:00:15]} Rxf8 {[%emt 0:00:34]} 24. Qg2 {[%emt 0:00:20]} (24. Qg4 $16 Qxg4 25. Nxg4) 24... Qxg2+ $11 {[%emt 0:01:12]} 25. Kxg2 {[%emt 0:00:04]} b6 {[%emt 0:00:22]} 26. Nc2 {[%emt 0:05:52]} Re8 {[%emt 0:04:13]} 27. Kf3 {[%emt 0:00:15] Inhibits Re2.} Rf8+ {[%emt 0:02:07]} 28. Ke2 {[%emt 0:02:04]} Ndf6 {[%emt 0:00:51]} 29. Be1 {[%emt 0:05:18]} Ng7 {[%emt 0:15:01]} 30. Nb4 {[%emt 0:00:52]} Rc8 {[%emt 0:01:36]} 31. Kd3 {[%emt 0:00:13]} c5 {[%emt 0:01:07]} 32. Nc2 {[%emt 0:02:08]} Nf5 {[%emt 0:04:01]} 33. Bf2 {[%emt 0:02:45]} d5 {[%emt 0:02:32]} 34. dxc5 {[%emt 0:01:37]} (34. Na3 $11) 34... Ne4 {[%emt 0:00:09]} ({Black should try} 34... dxc4+ $17 35. Kxc4 Ne4) 35. Bg1 {[%emt 0:03:48]} Nxc5+ {[%emt 0:00:19]} 36. Bxc5 {[%emt 0:00:26]} Rxc5 {[%emt 0:01:24]} 37. cxd5 {[%emt 0:00:36]} Rxd5+ {[%emt 0:00:09][%mdl 4096] Endgame. KRN-KRN} 38. Nd4 {[%emt 0:00:08]} Ra5 {[%emt 0:07:32]} 39. Rb2 {[%emt 0:00:51]} Nd6 {[%emt 0:06:07]} 40. Rf2 {[%emt 0:02:30]} Re5 {[%emt 0:02:08]} 41. Nc6 {[%emt 0:11:47]} Rd5+ {[%emt 0:00:09]} 42. Kc2 {[%emt 0:00:11] [#] Strongly threatening Ne7+.} Rc5 {[%emt 0:00:19]} 43. Ne7+ {[%emt 0:02:20]} Kg7 {[%emt 0:00:18]} 44. Rd2 {[%emt 0:00:11]} Ne4 {[%emt 0:10:15][%csl LRc3,LRd2]} 45. Rd7 {[%emt 0:02:06] The position is equal.} Kf8 {[%emt 0:04:11]} (45... Nxc3 $2 {is the wrong capture.} 46. Nd5+ (46. Rxa7 $2 {loses.} Nb5+ 47. Kd3 Nxa7 $19) 46... Kh6 47. Nxc3 $18) 46. Nd5 {[%emt 0:05:07]} Ke8 {[%emt 0:01:43]} 47. Re7+ {[%emt 0:00:05]} Kd8 {[%emt 0:00:13][%cal Oe4c3] ...Nxc3! would now be deadly.} 48. Rxe4 {[%emt 0:00:41]} Rxd5 {[%emt 0:00:05]} 49. Rf4 {[%emt 0:02:04] Weighted Error Value: White=0.14 (very precise) /Black=0.12 (very precise) .  Mistake:       	White=3     	Black=3      Inaccurate:     	White=1     	Black=2      OK:         	White=14    	Black=20     Best:        	White=3     	Black=1} 1/2-1/2

[Event "Czech Extraliga 2024-25"]
[Site "Czechia"]
[Date "2024.11.03"]
[Round "2.8"]
[White "Vrana, Jan"]
[Black "Ponizil, Cyril"]
[Result "1/2-1/2"]
[ECO "B13"]
[WhiteElo "2348"]
[BlackElo "2465"]
[Annotator "TA"]
[PlyCount "74"]
[EventDate "2024.09.12"]
[EventType "team-tourn"]
[EventCountry "CZE"]
[SourceTitle "playchess.com"]
[Source "ChessBase"]
[SourceQuality "1"]
[TimeControl "40/5400+30:1800+30"]

{[%evp 23,74,0,0,-26,-10,-6,-7,-10,-8,-16,-18,-35,-18,-18,-4,-18,-28,-18,-23,-22,-21,-29,-37,-20,-14,-75,-60,-89,-31,-22,-27,-53,-51,-42,-33,-37,-20,-33,-35,-50,-50,-51,-51,-51,-51,-51,-51,-51,-51,-51,-51,-51,0]} 1. e4 {[%emt 0:00:01]} c6 {[%emt 0:00:04]} 2. d4 {[%emt 0:00:05]} d5 {[%emt 0:00:03]} 3. exd5 {[%emt 0:00:03]} cxd5 {[%emt 0:00:02]} 4. c4 {[%emt 0:00:06]} Nf6 {[%emt 0:00:04]} 5. Nc3 {[%emt 0:00:04]} Nc6 {[%emt 0:00:04]} 6. Nf3 {[%emt 0:00:11]} Bg4 {[%emt 0:00:09]} 7. cxd5 {[%emt 0:00:28]} Nxd5 {[%emt 0:00:06]} 8. Qb3 {[%emt 0:00:04]} Bxf3 {[%emt 0:00:04]} 9. gxf3 {[%emt 0:00:05]} e6 {[%emt 0:00:03]} 10. Qxb7 {[%emt 0:00:10]} Nxd4 {[%emt 0:00:03]} 11. Bb5+ {[%emt 0:00:12]} Nxb5 {[%emt 0:00:04][%cal Bd4b5,Bb5d6,Bd6c4][%mdl 32]} 12. Qc6+ {[%emt 0:00:05]} Ke7 {[%emt 0:00:08]} 13. Qc5+ {[%emt 0:00:07]} Nd6 {[%emt 0:00:12] [#] ...Nxc3 would now be deadly.} 14. Nxd5+ {[%emt 0:00:06]} Kd7 {[%emt 0:00:13]} ({Don't take} 14... exd5 15. O-O $15) 15. Nc3 {[%emt 0:06:15] The position is equal.} Qb6 {[%emt 0:00:08]} 16. Qxb6 {[%emt 0:06:55]} (16. Qe5 {seems wilder.} Be7 17. O-O Bf6 18. Qf4) 16... axb6 {[%emt 0:00:34]} 17. Be3 {[%emt 0:00:01]} Nc4 {[%emt 0:07:56]} 18. O-O-O+ {[%emt 0:09:29]} Kc6 {[%emt 0:01:22]} 19. Rd4 {[%emt 0:18:57]} Nxe3 {[%emt 0:08:11]} (19... b5 {is more complex.} 20. Rhd1 Bc5 21. Re4 Nxe3 22. fxe3 Rhb8) 20. fxe3 {[%emt 0:00:10]} Bc5 {[%emt 0:00:04]} 21. Rd3 {[%emt 0:00:36]} Rhd8 {[%emt 0:04:47]} 22. Rhd1 {[%emt 0:00:58]} Rxd3 {[%emt 0:00:04]} 23. Rxd3 $11 {[%emt 0:00:04][%mdl 4096] Endgame. KRB-KRN} Ra5 {[%emt 0:01:23]} 24. a3 {[%emt 0:14:17]} (24. a4 $11 {keeps the balance.}) 24... Be7 {[%emt 0:08:12]} 25. Ne4 {[%emt 0:01:58] [#]} f5 {[%emt 0:02:11]} (25... Rh5 $1 $17 26. Rc3+ Kd7 27. Rd3+ Ke8 28. Nd6+ Kf8) 26. Rc3+ $15 {[%emt 0:07:20]} Kb7 {[%emt 0:05:28]} 27. b4 {[%emt 0:06:34]} Rd5 {[%emt 0:03:49]} 28. Nf2 {[%emt 0:01:08]} Bf6 {[%emt 0:04:08]} 29. Rd3 {[%emt 0:03:32]} Kc6 {[%emt 0:00:33]} 30. Kc2 {[%emt 0:00:12]} b5 {[%emt 0:05:02] Black is slightly better.} 31. e4 {[%emt 0:12:15]} Rd4 {[%emt 0:02:54]} 32. Rxd4 {[%emt 0:04:20]} Bxd4 {[%emt 0:48:25] KB-KN} 33. Nd3 {[%emt 0:10:12]} g5 {[%emt 0:00:30] Threatens to win with ...g4.} 34. h3 {[%emt 0:00:30]} Kd6 {[%emt 0:00:00]} 35. Kd2 {[%emt 0:00:00]} Ke7 {[%emt 0:00:00]} 36. Ke2 {[%emt 0:00:00]} Kf6 {[%emt 0:00:00]} 37. Kf1 {[%emt 0:00:00]} Ke7 {[%emt 0:00:00] Weighted Error Value: White=0.11 (very precise) /Black=0.06 (flawless) .  Mistake:       	White=1     	Black=2      Inaccurate:     	White=2     	---        OK:         	White=11    	Black=9      Best:        	---       	Black=1} (37... h6 $15) 1/2-1/2

[Event "Czech Extraliga 2024-25"]
[Site "Czechia"]
[Date "2024.11.03"]
[Round "2.8"]
[White "Balacek, Tadeas"]
[Black "Mica, Marek"]
[Result "1/2-1/2"]
[ECO "A13"]
[WhiteElo "2346"]
[BlackElo "2333"]
[Annotator "RC"]
[PlyCount "110"]
[EventDate "2024.09.12"]
[EventType "team-tourn"]
[EventCountry "CZE"]
[SourceTitle "playchess.com"]
[Source "ChessBase"]
[SourceQuality "1"]
[TimeControl "40/5400+30:1800+30"]

1. c4 {[%emt 0:00:17]} e6 {[%emt 0:00:24]} 2. g3 {[%emt 0:00:30]} d5 {[%emt 0:00:19]} 3. Bg2 {[%emt 0:00:08]} Nf6 {[%emt 0:00:46]} 4. Nf3 {[%emt 0:00:10]} d4 {[%emt 0:01:07]} 5. O-O {[%emt 0:01:17]} Nc6 {[%emt 0:00:21]} 6. d3 {[%emt 0:01:26]} Bc5 {[%emt 0:00:41]} 7. Nbd2 {[%emt 0:03:51]} O-O {[%emt 0:00:30]} 8. Nb3 {[%emt 0:01:00]} Be7 {[%emt 0:00:06]} 9. e3 {[%emt 0:00:37]} dxe3 {[%emt 0:00:26]} 10. Bxe3 {[%emt 0:00:12]} Ng4 {[%emt 0:00:55]} 11. Bc5 {[%emt 0:02:57]} a5 {[%emt 0:01:06]} 12. Bxe7 {[%emt 0:01:50]} Qxe7 {[%emt 0:01:15]} 13. a4 {[%emt 0:00:27]} Rd8 {[%emt 0:27:57]} 14. Re1 {[%emt 0:00:49]} Qb4 {[%emt 0:11:31]} 15. Qc2 {[%emt 0:14:25]} Ra6 {[%emt 0:08:11]} 16. c5 {[%emt 0:10:42]} Nf6 {[%emt 0:22:58]} 17. d4 {[%emt 0:02:27]} e5 {[%emt 0:13:28]} 18. dxe5 {[%emt 0:10:15]} Be6 {[%emt 0:00:20]} 19. Nbd2 {[%emt 0:13:35]} Nd7 {[%emt 0:01:32]} 20. Ng5 {[%emt 0:04:41]} Nf8 {[%emt 0:00:07]} 21. Ndf3 {[%emt 0:10:40]} Qb3 {[%emt 0:02:26]} 22. Qb1 {[%emt 0:10:53]} Nb4 {[%emt 0:01:10]} 23. Ra3 {[%emt 0:03:05]} Qc2 {[%emt 0:00:20]} 24. Nxe6 {[%emt 0:01:36]} Nxe6 {[%emt 0:00:07]} 25. Rc3 {[%emt 0:01:02]} Qxb1 {[%emt 0:01:03]} 26. Rxb1 {[%emt 0:00:01]} c6 {[%emt 0:00:45]} 27. Bf1 {[%emt 0:01:26]} Raa8 {[%emt 0:00:16]} 28. h4 {[%emt 0:01:40]} Rd7 {[%emt 0:01:25]} 29. Kg2 {[%emt 0:01:22]} h6 {[%emt 0:00:16]} 30. Bc4 {[%emt 0:00:53]} Rad8 {[%emt 0:00:18]} 31. Bxe6 {[%emt 0:00:46]} fxe6 {[%emt 0:00:06]} 32. Kf1 {[%emt 0:00:41]} Rd1+ {[%emt 0:02:26]} 33. Rxd1 {[%emt 0:00:02]} Rxd1+ {[%emt 0:00:09]} 34. Ke2 {[%emt 0:00:09]} Rb1 {[%emt 0:00:42]} 35. b3 {[%emt 0:01:18]} Nd5 {[%emt 0:00:09]} 36. Rd3 {[%emt 0:00:15]} Rc1 {[%emt 0:00:38]} 37. Nd2 {[%emt 0:00:53]} Rxc5 {[%emt 0:01:07]} 38. Nc4 {[%emt 0:00:32]} b5 {[%emt 0:01:20]} 39. axb5 {[%emt 0:00:21]} Rxb5 {[%emt 0:00:27]} 40. Kd2 {[%emt 0:00:46]} a4 {[%emt 0:00:37]} 41. bxa4 {[%emt 0:04:01]} Rb4 {[%emt 0:01:21]} 42. Nd6 {[%emt 0:01:14]} Rxa4 {[%emt 0:07:09]} 43. Rb3 {[%emt 0:00:38]} Ra2+ {[%emt 0:00:10]} 44. Ke1 {[%emt 0:01:09]} c5 {[%emt 0:08:46]} 45. Rb8+ {[%emt 0:07:26]} Kh7 {[%emt 0:00:05]} 46. Re8 {[%emt 0:06:54]} Nb4 {[%emt 0:00:53]} 47. Ne4 {[%emt 0:02:10]} Nd3+ {[%emt 0:02:05]} 48. Kf1 {[%emt 0:00:27]} Kg6 {[%emt 0:01:45]} 49. g4 {[%emt 0:02:10]} Kh7 {[%emt 0:05:24]} 50. h5 {[%emt 0:01:15]} Nxe5 {[%emt 0:02:58]} 51. g5 {[%emt 0:00:36]} hxg5 {[%emt 0:00:54]} 52. Nxg5+ {[%emt 0:00:26]} Kh6 {[%emt 0:00:07]} 53. Rxe6+ {[%emt 0:02:44]} Kxg5 {[%emt 0:00:11]} 54. Rxe5+ {[%emt 0:00:05]} Kh6 {[%emt 0:00:18]} 55. Rxc5 {[%emt 0:00:14]} Ra4 {[%emt 0:00:05]} 1/2-1/2